Cogmind - Beta 14 @@@ ROGUE MODE // 2024.11.25 @ 22:39:38 Player: TheTravelingGuy Result: Destroyed by H-61 Shepherd with Heavy Assault Cannon Performance ------------- Evolutions (4) 2000 Regions Visited (5) 1000 Robots Destroyed (73) 365 Value Destroyed (1787) 1787 Prototype IDs (2) 40 Alien Tech Used (0) 0 Bonus (8) 8 TOTAL SCORE: 5200 Bonus ------- High Alert Combat Kills 8 Cogmind --------- Core Integrity 0/850 Matter 87/300 Energy 99/100 System Corruption 3% Temperature Cool (0) Movement Core (50) Location -6/Factory Parts ------- > --- POWER (2) -------- (None) > --- PROPULSION (6) --- (None) > --- UTILITY (5) ------ Hacking Suite > --- WEAPON (2) ------- (None) > --- INVENTORY (5) ---- Heat Sink Medium Matter Pod (0) Proton Missile Launcher Proton Missile Launcher Improved Datajack Peak State ------------ > --- POWER ------------ Micro Nuclear Core Micro Nuclear Core > --- PROPULSION ------- Improved Flight Unit Improved Flight Unit Improved Flight Unit Improved Flight Unit Improved Flight Unit > --- UTILITY ---------- Advanced ECM Suite Hardened Light Armor Plating Hacking Suite Hacking Suite > --- WEAPON ----------- EM Shotgun Proton Missile Launcher > --- INVENTORY -------- Heat Sink Medium Matter Pod EM Shotgun Mini Grenade Launcher Improved Datajack [Rating: 41] Favorites ----------- Power Cooled Ion Engine Engine Cooled Ion Engine Power Core Micro Nuclear Core Propulsion Aluminum Leg Treads Light Treads Leg Aluminum Leg Flight Unit Improved Flight Unit Utility Hardened Light Armor Plating Device Heat Sink Storage Large Storage Unit Hackware Hacking Suite Protection Hardened Light Armor Plating Weapon Great Maul Energy Gun EM Shotgun Ballistic Gun Light Assault Rifle Ballistic Cannon Light Cannon Launcher Mini Grenade Launcher Impact Weapon Great Maul Special Melee Weapon Improved Datajack Build | -11 -10 -9 -8 -7 -6 ------- Run | Yrd Mat Mat Mat Fac Fac Slots Evolved 8 | . . 2 2 2 2 Power 1 | . . . . 1 . Propulsion 4 | . . . 2 . 2 Utility 3 | . . 2 . 1 . Weapon . | . . . . . . Parts Attached 64 | 6 17 19 6 4 12 Power 9 | 1 2 2 1 3 . Engine 5 | 1 2 2 . . . Core 4 | . . . 1 3 . Reactor . | . . . . . . Propulsion 19 | 2 5 8 2 . 2 Treads 2 | 2 . . . . . Leg 10 | . 5 5 . . . Wheel . | . . . . . . Hover . | . . . . . . Flight 7 | . . 3 2 . 2 Utility 16 | 1 5 7 . 1 2 Device 5 | . 2 1 . 1 1 Storage 2 | 1 1 . . . . Processor . | . . . . . . Hackware 4 | . . 3 . . 1 Protection 5 | . 2 3 . . . Artifact . | . . . . . . Weapon 20 | 2 5 2 3 . 8 Energy Gun 6 | . 1 . 2 . 3 Energy Cannon . | . . . . . . Ballistic Gun 2 | 2 . . . . . Ballistic Cannon 4 | . 4 . . . . Launcher 3 | . . . 1 . 2 Special Weapon . | . . . . . . Impact Weapon 2 | . . 2 . . . Slashing Weapon . | . . . . . . Piercing Weapon . | . . . . . . Special Melee Weapon 3 | . . . . . 3 Unidentified Prototypes 2 | . 1 1 . . . Parts Lost 14 | . 2 3 . . 9 Power 4 | . 1 1 . . 2 Propulsion 3 | . . . . . 3 Utility 5 | . . 2 . . 3 Weapon 2 | . 1 . . . 1 Highest Loss Streak 7 | . 1 1 . . 7 To Critical Strikes . | . . . . . . Average Slot Usage (%) 97 | . 99 99 96 90 64 Engine 10 | . 14 11 8 . . Core 1 | . . . 1 12 10 Treads 2 | . 6 . . . . Leg 18 | . 21 21 . . . Flight 3 | . . . 36 30 26 Device 2 | . 4 . 9 7 5 Storage 10 | . 14 10 . . . Hackware 10 | . . 16 18 15 16 Protection 12 | . 9 16 9 7 1 Energy Gun 1 | . 1 . 13 15 1 Ballistic Gun 2 | . 5 . . . . Ballistic Cannon 8 | . 21 1 . . . Impact Weapon 10 | . . 20 . . . Peak Build Rating 41 | 6 12 26 29 38 41 Average Rating 17 | 4 10 20 25 33 32 On Entrance 17 | . 6 12 17 29 38 Naked Turns . | . . . . . . Heaviest Build 46 | 11 39 46 17 27 26 Greatest Support 40 | 40 40 20 20 20 25 Greatest Overweight (x) 8 | 3 2 8 . 1 1 Average Overweight (x) . | . . 1 . . . Largest Inventory Capacity 15 | 8 15 15 5 5 5 Average Capacity 12 | 7 11 14 5 5 5 Most Carried 15 | 5 15 15 5 5 5 Average Carried 10 | 3 9 13 3 4 4 Final Capacity 15 | 8 15 5 5 5 5 Final Carried 15 | 5 15 4 5 5 5 Class Distribution -------------------- 65% | Mutant 26% | Hacker-Mutant 8% | Hacker-Sprinter Dominant Class ---------------- Mutant | -10/Materials Mutant | -9/Materials Hacker-Sprinter | -8/Materials Hacker-Mutant | -7/Factory Hacker-Sprinter | -6/Factory Resources | -11 -10 -9 -8 -7 -6 ----------- Run | Yrd Mat Mat Mat Fac Fac Matter Collected 1442 | 241 958 230 . . 13 Remotely . | . . . . . . Salvage Created 2321 | 29 718 1424 60 . 90 Parts 113 | 2 43 60 5 . 3 Haulers Intercepted 3 | . 1 2 . . . Recyclers Shooed . | . . . . . . Parts Field Recycled . | . . . . . . Retrieved Matter . | . . . . . . Parts Self-Destructed . | . . . . . . Prevented . | . . . . . . Kills | -11 -10 -9 -8 -7 -6 ------- Run | Yrd Mat Mat Mat Fac Fac Combat Hostiles Destroyed 47 | . 20 25 2 . . Melee 17 | . . 17 . . . Guns 11 | . 10 . 1 . . Cannons 14 | . 10 4 . . . AOE 1 | . . . 1 . . Classes Destroyed 12 | 1 5 6 . . . Worker 5 | . 2 3 . . . Builder 2 | . . 1 . . 1 Tunneler 2 | 1 . 1 . . . Hauler 3 | . 1 2 . . . Recycler 4 | . . 4 . . . Mechanic 1 | . . 1 . . . Operator 5 | . 3 1 1 . . Watcher 4 | . . 4 . . . Swarmer 9 | . 4 4 1 . . Grunt 29 | . 16 13 . . . Brawler 1 | . . 1 . . . Sentry 8 | . . 7 1 . . Best Kill Streak 6 | 1 4 6 2 . 1 Combat Bots Only 6 | . 4 6 1 . . Max Kills in Single Turn 2 | 1 2 2 1 . 1 Gunslinging . | . . . . . . Exploded 1 | . . . 1 . . Melee 1 | . . 1 . . . Uniques/NPCs Destroyed . | . . . . . . Combat | -11 -10 -9 -8 -7 -6 -------- Run | Yrd Mat Mat Mat Fac Fac Hostile Shots Fired 494 | . 103 122 13 . 256 Missed 213 | . 28 28 5 . 152 Damage Taken 3459 | . 806 1173 80 . 1400 Core 1226 | . 88 233 14 . 891 Absorbed by Shields . | . . . . . . Regen/Repaired (Parts) 26 | . . . . . 26 Core Remaining (%) 80 | 100 64 41 97 100 . Volleys Fired 99 | 5 76 5 5 . 8 Largest 2 | 2 2 2 2 . 2 Hottest 90 | 40 70 70 90 . 90 Shots Fired 186 | 9 150 10 8 . 9 Gun 84 | 9 65 . 6 . 4 Cannon 95 | . 85 10 . . . Launcher 7 | . . . 2 . 5 Special . | . . . . . . Kinetic 167 | 9 148 10 . . . Thermal 2 | . 2 . . . . Explosive 2 | . . . 2 . . Electromagnetic 15 | . . . 6 . 9 Robot Hit Streak 12 | 3 12 4 3 . 3 Robot Miss Streak 8 | 2 8 2 2 . 3 Penetration Max . | . . . . . . Secondary Targets 3 | . 2 . 1 . . Max Gunslinging Chain 1 | . 1 . 1 . . Shots Hit Robots 158 | 6 76 64 7 . 5 Core Hits 74 | 1 40 25 5 . 3 Critical Kills 6 | . . 6 . . . Critical Parts Destroyed 6 | . . 6 . . . Critical Strikes 19 | . 6 13 . . . Blast 7 | . 6 1 . . . Smash 12 | . . 12 . . . Melee Attacks 96 | . . 95 . . 1 Impact 95 | . . 95 . . . Slashing . | . . . . . . Piercing . | . . . . . . Sneak Attacks 15 | . . 15 . . . Combat Hostiles . | . . . . . . Follow-up Attacks 8 | . . 8 . . . Damage Inflicted 4646 | 64 1046 3239 120 . 177 Guns 606 | 64 465 . 54 . 23 Cannons 686 | . 581 105 . . . Explosions 220 | . . . 66 . 154 Melee 3134 | . . 3134 . . . Ramming . | . . . . . . Kinetic 1195 | 64 1026 105 . . . Thermal 20 | . 20 . . . . Explosive 120 | . . . 66 . 54 Electromagnetic 177 | . . . 54 . 123 Impact 3134 | . . 3134 . . . Slashing . | . . . . . . Piercing . | . . . . . . Highest Corruption 3 | . . 1 . 3 3 Average Corruption 1 | . . 1 . 2 1 Corruption Purged . | . . . . . . Corruption Blocked . | . . . . . . Effects 4 | . . 1 . 2 1 Message Errors 1 | . . . . 1 . Matter Fused 1 | . . . . 1 . Parts Rejected 1 | . . . . . 1 Data Loss (minor) 1 | . . 1 . . . Overload Shots . | . . . . . . Overflow Damage 838 | . . 835 . . 3 Projectiles . | . . . . . . Explosions 3 | . . . . . 3 Melee 835 | . . 835 . . . Knockbacks 21 | . 6 15 . . . Impact 9 | . . 9 . . . Kinetic 10 | . 6 4 . . . Secondary 2 | . . 2 . . . Self-Inflicted Damage . | . . . . . . Shots . | . . . . . . Rammed . | . . . . . . Targets Rammed 1 | . 1 . . . . Kicked 1 | . 1 . . . . Crushed . | . . . . . . Highest Temperature 298 | . 198 36 38 . 298 Average Temperature 84 | . 53 15 19 . 158 Received Heat Transfer 1020 | . 378 459 18 . 165 Effects 1 | . . . . . 1 Interference 1 | . . . . . 1 Siege Activations . | . . . . . . Robots Corrupted 13 | . . 13 . . . Combat Hostiles 4 | . . 4 . . . Parts Fried 23 | . . 23 . . . Impact Corruptions 28 | . . 28 . . . Robots Melted . | . . . . . . Combat Hostiles . | . . . . . . Parts Melted . | . . . . . . Heat Transferred 50 | . 50 . . . . Parts Sabotaged . | . . . . . . Parts Stolen . | . . . . . . Parts Stripped . | . . . . . . Power Chain Reactions . | . . . . . . Alert | -11 -10 -9 -8 -7 -6 ------- Run | Yrd Mat Mat Mat Fac Fac Peak Influence 510 | 5 299 413 369 272 510 Initial 167 | . 3 108 154 167 133 Average 236 | 1 146 304 252 234 337 Maximum Alert Level 2 | . 1 2 1 1 2 Low Security (%) 34 | 100 71 4 22 34 15 Level 1 63 | . 28 94 77 65 44 Level 2 2 | . . . . . 39 Level 3 . | . . . . . . Level 4 . | . . . . . . Level 5 . | . . . . . . High Security . | . . . . . . Max Security . | . . . . . . Squads Dispatched 18 | . 6 4 1 1 6 Investigation 7 | . 3 3 . 1 . Extermination 1 | . . . . . 1 Reinforcement 7 | . 3 1 1 . 2 Assault . | . . . . . . Garrison 3 | . . . . . 3 Intercept . | . . . . . . Searches Triggered . | . . . . . . Construction Impeded 1 | . . . . . 1 Haulers Reinforced . | . . . . . . Active Scanning Responses . | . . . . . . Cargo Convoy Interrupts . | . . . . . . Stealth | -11 -10 -9 -8 -7 -6 --------- Run | Yrd Mat Mat Mat Fac Fac Distress Signals 7 | . 3 4 . . . Communications Jammed . | . . . . . . Distress Signals . | . . . . . . Times Spotted 123 | . 41 35 10 6 31 Peak Tracking Total 11 | . 5 5 7 5 11 Tactical Retreats 20 | . 4 3 1 4 8 Traps | -11 -10 -9 -8 -7 -6 ------- Run | Yrd Mat Mat Mat Fac Fac Traps Triggered 7 | . 3 2 . 2 . Indirectly . | . . . . . . Trap Hack Attempts . | . . . . . . Triggered . | . . . . . . Disarmed . | . . . . . . Reprogrammed . | . . . . . . Reused . | . . . . . . Traps Extracted . | . . . . . . Installed . | . . . . . . Triggered . | . . . . . . Machines | -11 -10 -9 -8 -7 -6 ---------- Run | Yrd Mat Mat Mat Fac Fac Machines Disabled 6 | . . . 1 . 5 Max in Single Turn 2 | . . . 1 . 2 Machines Repaired . | . . . . . . Machines Dismantled . | . . . . . . Machines Sabotaged . | . . . . . . Overloaded Fab Kills . | . . . . . . Hacking | -11 -10 -9 -8 -7 -6 --------- Run | Yrd Mat Mat Mat Fac Fac Machines Accessed 15 | . 4 7 . 1 3 Terminals 10 | . 3 6 . . 1 Fabricators . | . . . . . . Repair Stations 1 | . . . . . 1 Recycling Units 3 | . 1 1 . . 1 Scanalyzers 1 | . . . . 1 . Garrison Access . | . . . . . . Total Hacks 40 | . 13 18 . 4 5 Successful 27 | . 6 13 . 4 4 Failed 13 | . 7 5 . . 1 Catastrophic 2 | . . 1 . . 1 Database Lockouts . | . . . . . . Manual 27 | . 11 15 . . 1 Terminals 27 | . 11 15 . . 1 Fabricators . | . . . . . . Repair Stations 2 | . . . . . 2 Recycling Units 7 | . 2 3 . . 2 Scanalyzers 4 | . . . . 4 . Garrison Access . | . . . . . . Terminal Hacks 2 | . . 2 . . . Recall Investigation 2 | . . 2 . . . Fabricator Hacks . | . . . . . . Repair Station Hacks 2 | . . . . . 2 Scan Component 1 | . . . . . 1 Repair 1 | . . . . . 1 Recycling Unit Hacks 5 | . . 3 . . 2 Report Inventory 2 | . . 1 . . 1 Retrieve Matter 1 | . . . . . 1 Retrieve Components 2 | . . 2 . . . Scanalyzer 4 | . . . . 4 . Insert Component 2 | . . . . 2 . Analyze 2 | . . . . 2 . Garrison Access Hacks . | . . . . . . Unauthorized Hacks 14 | . 6 8 . . . Terminals 14 | . 6 8 . . . Track 4 | . 2 2 . . . Assimilate 2 | . 1 1 . . . Botnet 8 | . 3 5 . . . Fabricators . | . . . . . . Repair Stations . | . . . . . . Recycling Units . | . . . . . . Scanalyzers . | . . . . . . Garrison Access . | . . . . . . Data Cores Recovered . | . . . . . . Used . | . . . . . . Hacking Detections 12 | . 3 7 . 1 1 Full Trace Events 5 | . 1 3 . 1 . Feedback Events 1 | . . 1 . . . Corruption 1 | . . 1 . . . Feedback Blocked . | . . . . . . Robot Schematics Acquired . | . . . . . . Robots Built . | . . . . . . Authchips . | . . . . . . Time . | . . . . . . Total Robot Build Rating . | . . . . . . Part Schematics Acquired 2 | . . . . 2 . Parts Built . | . . . . . . Authchips . | . . . . . . Time . | . . . . . . Total Part Build Rating . | . . . . . . Parts Repaired 1 | . . . . . 1 Time 51 | . . . . . 51 Parts Recycled . | . . . . . . Recycled Matter . | . . . . . . Retrieved Matter . | . . . . . . Retrieved Components 20 | . . 20 . . . Parts Scanalyzed 2 | . . . . 2 . Part Schematics Acquired 2 | . . . . 2 . Parts Damaged . | . . . . . . Bothacking | -11 -10 -9 -8 -7 -6 ------------ Run | Yrd Mat Mat Mat Fac Fac Used RIF Installer . | . . . . . . Robots Hacked . | . . . . . . Non-combat . | . . . . . . Combat . | . . . . . . Robot Hacks Applied . | . . . . . . Relay Couplers Released . | . . . . . . Fabnet Peak Effective % . | . . . . . . Robots Rewired . | . . . . . . Allies Hacked . | . . . . . . Hacks Repelled . | . . . . . . Allies | -11 -10 -9 -8 -7 -6 -------- Run | Yrd Mat Mat Mat Fac Fac Total Allies . | . . . . . . Largest Group . | . . . . . . Highest-Rated Group . | . . . . . . Highest-Rated Ally . | . . . . . . Total Orders . | . . . . . . Ally Attacks . | . . . . . . Total Damage . | . . . . . . Kills . | . . . . . . Allies Corrupted . | . . . . . . Allies Melted . | . . . . . . Intel | -11 -10 -9 -8 -7 -6 ------- Run | Yrd Mat Mat Mat Fac Fac Robot Analysis Total . | . . . . . . Derelict Logs Recovered . | . . . . . . Drone Launches . | . . . . . . Drone Recoveries . | . . . . . . Exploration | -11 -10 -9 -8 -7 -6 ------------- Run | Yrd Mat Mat Mat Fac Fac Turns Passed 5059 | 135 1857 2492 85 198 292 Spaces Moved 2967 | 73 848 862 187 301 696 Core 46 | 18 . . . . 28 Treads 260 | 55 205 . . . . Legs 1402 | . 643 759 . . . Wheels . | . . . . . . Hover . | . . . . . . Flight 1259 | . . 103 187 301 668 Fastest Speed 28 | 50 120 37 31 31 28 Average Speed 136 | 144 174 230 31 63 31 Slowest Speed 610 | 200 260 610 31 101 98 Overloaded Moves . | . . . . . . Propulsion Burnouts . | . . . . . . Robots Hopped 9 | . . 1 4 . 4 Cave-ins Triggered . | . . . . . . Exploration Rate (%) 35 | 4 93 59 26 9 24 Regions Visited 5 Branch Regions . Pre-discovered Areas . | . . . . . . Known Exits Taken . | . . . . . . Unknown Exits Taken 5 | 1 1 1 1 1 . Scrap Searched . | . . . . . . Spaces Dug 14 | . . 14 . . . Terrain Destroyed 51 | . . 14 26 . 11 Melee 14 | . . 14 . . . Projectile . | . . . . . . AOE 37 | . . . 26 . 11 Terrain Rammed . | . . . . . . Walls Destroyed . | . . . . . . Machines Disabled . | . . . . . . Actions | -11 -10 -9 -8 -7 -6 --------- Run | Yrd Mat Mat Mat Fac Fac Total 3651 | 94 1084 1203 202 308 760 Wait 335 | . 96 206 2 . 31 Move 2944 | 72 847 859 178 300 688 Hop 9 | . . 1 4 . 4 Pick Up 64 | 11 27 17 5 1 3 Fast Attach 12 | . 5 . . 3 4 Attach 33 | 6 5 11 5 . 6 Detach 11 | . . 2 1 . 8 Swap 19 | . 7 8 1 1 2 Drop 47 | . 20 18 1 3 5 Fire 99 | 5 76 5 5 . 8 Melee 77 | . . 76 . . 1 Ram . | . . . . . . Kick 1 | . 1 . . . . Crush . | . . . . . . Escape Stasis . | . . . . . . Rewire . | . . . . . . Trap . | . . . . . . Miscellaneous . | . . . . . . Route ------- -11/Scrapyard -10/Materials (discovered 4 exits: *Mat x3 / [*Min]) -9/Materials (discovered 2 exits: [*Mat] / [*Min]) -8/Materials -7/Factory -6/Factory (discovered 1 exit: [*Fac]) History --------- Turn | Location | Event 18 | -11/Scrapyard | Discovered new exit (range 16) 136 | -11/Scrapyard | Entered Materials 284 | -10/Materials | Discovered new exit (range 9) 309 | -10/Materials | Build established: Mutant 680 | -10/Materials | Discovered new exit (range 11) 687 | -10/Materials | Discovered new exit (range 10) 1489 | -10/Materials | Discovered new exit (range 13) 1993 | -10/Materials | Entered another Materials area 1993 | -9/Materials | Evolved 2 slots: Utility x2 2286 | -9/Materials | Build established: Hacker-Mutant 3167 | -9/Materials | Discovered new exit (range 7) 3315 | -9/Materials | Build established: Mutant 3802 | -9/Materials | Discovered new exit (range 15) 4353 | -9/Materials | Core integrity fell below 50% 4485 | -9/Materials | Entered another Materials area 4485 | -8/Materials | Evolved 2 slots: Propulsion x2 4550 | -8/Materials | Discovered new exit (range 15) 4570 | -8/Materials | Entered Factory 4570 | -7/Factory | Evolved 2 slots: Power x1, Utility x1 4755 | -7/Factory | Discovered new exit (range 4) 4768 | -7/Factory | Entered another Factory area 4768 | -6/Factory | Evolved 2 slots: Propulsion x2 4924 | -6/Factory | Repaired Imp. Flight Unit? 4988 | -6/Factory | Spotted B-75 Beast 5012 | -6/Factory | Discovered new exit (range 13) 5047 | -6/Factory | Core integrity fell below 50% 5052 | -6/Factory | Core integrity fell below 20% 5060 | -6/Factory | Destroyed by H-61 Shepherd with Heavy Assault Cannon Last Messages --------------- 05045_ U-05 Engineer lays Concrete. 05045_ Hacking Suite destroyed. 05046_ Acquired Imp. Flight Unit. 05046_ U-05 Engineer lays Concrete. 05046_ K-01 Serf collects debris. 05046_ U-05 Engineer lays Concrete. 05047_ Imp. Flight Unit severed. 05047_ U-05 Engineer lays Concrete. 05048_ K-01 Serf collects debris. 05048_ U-05 Engineer builds a Wall. 05048_ U-05 Engineer lays Concrete. 05050_ K-01 Serf collects debris. 05050_ U-05 Engineer destroyed. 05051_ Penetrated by Slug. 05051_ U-05 Engineer builds a Wall. 05052_ K-01 Serf collects debris. 05055_ Penetrated by Slug. 05055_ K-01 Serf collects debris. 05057_ Slug penetrates Wall. 05060_ Penetrated by Slug. Map ----- +----------------------------------------------------+ | ?????????????????????# | | ?????????????????????# = "###+####### | | ###############+###### %=! " ! | | *! # | | """" """" | | """" ""?? | | " """"????? | | " """"????? | | % " """"????? | | % " """?????? | | #######+############### s####""""""" """?????? | | ??????????????????????# ;?# " ?????? | | ??????????????????????# s ###### ### ?????? | | ??????????????????????# ;#???####?? ?????? | | ??????????????????????# ##?????????#####?????? | | ??????????????????????# % #????????????????????? | | ????????????????????### ###??????????????????? | | ????????????????????# #??????????????????? | | ????????????????????# #??????????????????? | | ????????????????????# c #??????????????????? | | ?????????????????#### #??????????????????? | | ?????????????????# !H #??????????????????? | | ?????????????????# ## c #??????????????????? | | ?????????????????#??# #??????????????????? | | ????????????????????# #??????????????????? | | ????????????????????# @ #??????????????????? | | ????????????????????#####/####;#?????????????????? | | ???????????????????????? "???" #????????????????? | | ???????????????????????? "???? "#???????????????? | | ???????????????????????!! ""????##???????????????? | | ???????????????????????! ?????????????????????? | | ??????????????????????!! ????????????????????? | | ?????????????????????? ????????????????????? | | ????????????????????? "" ""????????????????????? | | ????????????????????? "" "?????????????????????? | | ???????????????????? """ "?????????????????????? | | ???????????????????? ??" "?????????????????????? | | ???????????????????# ??" "?????????????????????? | | ???????????????????# ???? ??????????????????????? | | ?????????????????????#????#??????????????????????? | | ?????????????????????????????????????????????????? | | ?????????????????????????????????????????????????? | | | | | | | | | | | | | | | | | +----------------------------------------------------+ Best States ------------- Heat Dissipation 47 Energy Generation 25 Energy Capacity 280 Matter Stores 300 Matter Capacity 300 Sight Range 16 Terrain Scan Range 16 Terrain Scan Density 10 ECM Strength 2 Jamming Range 12 Armor Coverage 300 Evasion (%) 63 Recoil Reduction 2 Offensive Hacking 30 Item Schematics ----------------- Imp. Flight Unit | -7/Factory | Scanalyzed Melee Analysis Suite | -7/Factory | Scanalyzed Robot Schematics ------------------ None Fabricated ------------ Nothing Alien Tech Used ----------------- None Achievements -------------- Slippery One Challenges ------------ None Game ------ Seed InertialKineticRipper Manual? 0 Play Time 00:40:02 Cumulative 15.5 hours Start 2024.11.25 @ 22:01:19 End 2024.11.25 @ 22:39:38 Sessions 1 Manual Loads 0 Difficulty Rogue Special Mode None Game No. 23 Rogue 23 Adventurer 0 Explorer 0 Win Type - Total 0 Types 0/0/0/0/0/0/0/0/0 Lore% 14 Gallery% 20 Achievement% 21 Wizard Run 0 Options --------- Layout 0 ASCII 0 Keyboard 0 Movement Mouse Keybinds 0 Fullscreen 2 Font 18/SmallcapsGlow Map View 76x50 Zoom Use 0% Tactical HUD 1 Map Filters NONE Filters NONE Steam 1 RUN: 1adb8aa8-cb6e-42ba-9518-6917a3b5b7fb